bitfinex/quotes_BTCUSD_20251029
["timestamp","ask_amount","ask_price","bid_price","bid_amount"]
[1761761172833,0.0002,111720.0,111690.0,0.17905291]
[1761761173040,0.34852444,111720.0,111700.0,0.10772411]
[1761761173256,0.18754451,111720.0,111700.0,0.15617411]
[1761761173466,0.179035,111710.0,111700.0,0.13826901]
[1761761173674,0.18735944,111710.0,111700.0,0.08981901]
[1761761173881,0.18735944,111710.0,111700.0,0.10512456]
[1761761174095,0.17905102,111700.0,111690.0,0.0632365]
[1761761174304,0.17906706,111690.0,111680.0,0.04845]
[1761761174742,0.17906826,111690.0,111670.0,0.17909861]
[1761761174937,0.17922007,111720.0,111690.0,0.17906673]
[1761761175146,0.18751992,111720.0,111700.0,0.08981901]
[1761761175377,0.179035,111710.0,111700.0,0.08981901]
[1761761176010,0.17907111,111690.0,111670.0,0.23650356]
[1761761176217,0.17905102,111700.0,111680.0,0.08981901]
[1761761176424,0.52817101,111720.0,111680.0,0.33526023]
[1761761176425,0.18817101,111720.0,111680.0,0.33526023]
[1761761176640,0.179035,111710.0,111700.0,0.04536]
[1761761176834,0.179035,111710.0,111700.0,0.08981901]
[1761761177046,0.18798675,111710.0,111700.0,0.08981901]
[1761761177254,0.179035,111710.0,111700.0,0.08981901]
[1761761177457,0.17905102,111700.0,111690.0,0.04536]
[1761761177663,0.17909913,111670.0,111650.0,0.15212039]
[1761761177874,0.17908309,111680.0,111660.0,0.08981901]
[1761761178089,0.17908309,111680.0,111660.0,0.13314521]
[1761761178090,0.17909913,111670.0,111660.0,0.13314521]
[1761761178298,0.17908309,111680.0,111660.0,0.13314521]
[1761761178504,0.17909799,111690.0,111670.0,0.04845]
[1761761178702,0.51909799,111690.0,111680.0,0.08981901]
[1761761179539,0.17909799,111690.0,111680.0,0.08981901]
[1761761179949,0.18800357,111700.0,111680.0,0.09880091]
[1761761180154,0.17906706,111690.0,111680.0,0.09880091]
[1761761180357,0.17906706,111690.0,111680.0,0.08981901]
[1761761180775,0.18800357,111700.0,111680.0,0.08981901]
[1761761180977,0.17906706,111690.0,111680.0,0.08981901]
[1761761181398,0.17909636,111680.0,111660.0,0.0917762]
[1761761181603,0.17910085,111670.0,111650.0,0.2364343]
[1761761181803,0.18805051,111680.0,111660.0,0.17911517]
[1761761182031,0.52802041,111690.0,111660.0,0.24547668]
[1761761182245,0.20958675,111710.0,111680.0,0.17908309]
[1761761182457,0.20958675,111710.0,111690.0,0.17906608]
[1761761182458,0.19627411,111710.0,111690.0,0.17906608]
[1761761182675,0.18824502,111720.0,111700.0,0.26886977]
[1761761182884,0.179035,111710.0,111700.0,0.08981901]
[1761761183089,0.17908309,111680.0,111660.0,0.23652092]
[1761761183299,0.17908309,111680.0,111670.0,0.13826901]
[1761761183512,0.17908309,111680.0,111670.0,0.26891814]
[1761761183724,0.17906706,111690.0,111670.0,0.26891814]
[1761761183935,0.17908309,111680.0,111670.0,0.26891814]
[1761761184150,0.17908309,111680.0,111670.0,0.08981901]
[1761761184354,0.17906706,111690.0,111670.0,0.26891814]
[1761761184563,0.18801761,111700.0,111680.0,0.17908284]
[1761761184803,0.17909675,111680.0,111650.0,0.36835935]
[1761761185010,0.17909913,111670.0,111660.0,0.08981901]
[1761761185645,0.17909913,111670.0,111630.0,0.30932813]
[1761761185646,0.22191913,111670.0,111630.0,0.09402651]
[1761761185911,0.18809253,111660.0,111640.0,0.26896626]
[1761761186131,0.17909913,111670.0,111650.0,0.17913121]
[1761761186354,0.17911517,111660.0,111650.0,0.18362901]
[1761761186571,0.17911517,111660.0,111650.0,0.13517901]
[1761761186781,0.17911517,111660.0,111650.0,0.08981901]
[1761761186983,0.17616968,111660.0,111650.0,0.08981901]
[1761761187223,0.17914725,111640.0,111630.0,0.07378874]
[1761761187436,0.17914725,111640.0,111630.0,0.09003552]
[1761761187650,3.56795725,111640.0,111630.0,0.00021651]
[1761761187863,3.57626851,111640.0,111630.0,0.00021651]
[1761761188075,3.56795725,111640.0,111630.0,0.00021651]
[1761761188293,3.66609148,111640.0,111630.0,0.00021651]
[1761761188944,3.57627247,111640.0,111630.0,0.00021651]
[1761761189599,0.52746247,111640.0,111630.0,0.00021651]
[1761761189840,0.51914725,111640.0,111630.0,0.00021651]
[1761761190364,0.52746723,111640.0,111630.0,0.00021651]
[1761761190599,3.66635284,111640.0,111630.0,0.00021651]
[1761761190858,3.70253512,111640.0,111630.0,1e-08]
[1761761191069,0.18819214,111600.0,111580.0,0.17924359]
[1761761191282,0.18819214,111600.0,111590.0,0.08981901]
[1761761191500,0.17919556,111610.0,111590.0,0.33541928]
[1761761191715,0.17921146,111600.0,111590.0,0.13826901]
[1761761191923,0.17919556,111610.0,111600.0,0.17921146]
[1761761192140,0.23351618,111630.0,111600.0,0.13826901]
[1761761192365,0.17919541,111610.0,111600.0,0.08981901]
[1761761192607,0.17922516,111600.0,111580.0,0.17924303]
[1761761192818,0.18815518,111610.0,111590.0,0.17922752]
[1761761193032,0.17921146,111600.0,111580.0,0.26709253]
[1761761193243,0.17921146,111600.0,111590.0,0.31749653]
[1761761193572,0.17918001,111620.0,111590.0,0.31749653]
[1761761193660,0.17921146,111600.0,111590.0,0.13826901]
[1761761193884,0.17922752,111590.0,111580.0,0.0393995]
[1761761194097,0.17922752,111590.0,111580.0,0.17924359]
[1761761194319,0.18817203,111600.0,111580.0,0.2690626]
[1761761194536,0.17922752,111590.0,111580.0,0.08981901]
[1761761195198,0.52815567,111610.0,111580.0,0.3175126]
[1761761195436,0.17924359,111580.0,111560.0,0.04845]
[1761761195648,0.17925965,111570.0,111560.0,0.08981901]
[1761761195869,0.18820576,111580.0,111560.0,0.26909473]
[1761761196096,0.18820576,111580.0,111570.0,0.08981901]
[1761761196775,0.17922752,111590.0,111580.0,0.17924359]
[1761761196986,0.17922752,111590.0,111580.0,0.08981901]
[1761761197204,0.18817234,111600.0,111580.0,0.3175126]
[1761761197440,0.52815567,111610.0,111590.0,0.26904653]
[1761761197651,0.17919876,111610.0,111590.0,0.31535653]
[1761761197889,0.17919876,111610.0,111600.0,0.00064973]
[1761761198351,0.18818319,111620.0,111600.0,0.17986119]
[1761761198581,0.17919541,111610.0,111590.0,0.08981901]
[1761761198814,0.18818889,111590.0,111560.0,0.05527378]
[1761761199020,0.15424359,111580.0,111570.0,0.08981901]
[1761761199941,0.17925965,111570.0,111550.0,0.23456525]
[1761761200141,0.17927572,111560.0,111550.0,0.23456525]
[1761761200360,0.17925965,111570.0,111560.0,0.1807923]
[1761761200584,0.56489811,111590.0,111560.0,0.31692131]
[1761761200800,0.18817203,111600.0,111580.0,0.17924359]
[1761761201012,0.52815518,111610.0,111580.0,0.2690626]
[1761761201284,0.51921184,111600.0,111580.0,0.13612901]
[1761761201493,0.17922752,111590.0,111580.0,0.08981901]
[1761761201742,0.34,111600.0,111580.0,0.3153726]
[1761761201954,0.51921146,111600.0,111590.0,0.08981901]
[1761761202630,0.17924359,111580.0,111570.0,0.22921965]
[1761761202841,0.17924359,111580.0,111570.0,0.31903866]
[1761761203048,0.17924359,111580.0,111570.0,0.13977901]
[1761761203252,0.17924359,111580.0,111570.0,0.26907866]
[1761761203468,0.17922752,111590.0,111570.0,0.42076324]
[1761761203684,0.17922752,111590.0,111580.0,0.08981901]
[1761761205033,0.51921235,111600.0,111580.0,0.3153726]
[1761761205247,0.17922752,111590.0,111580.0,0.3153726]
[1761761205453,0.17921235,111600.0,111580.0,0.3153726]
[1761761205898,0.17922752,111590.0,111580.0,0.08981901]
[1761761206116,0.17922752,111590.0,111580.0,0.09090209]
[1761761206345,0.17922752,111590.0,111580.0,0.12381036]
[1761761206780,0.18815518,111610.0,111580.0,0.3672883]
[1761761206988,0.18815518,111610.0,111580.0,0.30197087]
[1761761207197,0.17921146,111600.0,111580.0,0.34828087]
[1761761207413,0.17921146,111600.0,111580.0,0.30197087]
[1761761207622,0.17922752,111590.0,111580.0,0.08981901]
[1761761208688,0.17922752,111590.0,111580.0,0.3153726]
[1761761209169,0.17921146,111600.0,111590.0,0.17922658]
[1761761209378,0.17921146,111600.0,111590.0,0.08981901]
[1761761209594,0.17923918,111590.0,111570.0,0.23818203]
[1761761209799,0.64969915,111590.0,111580.0,0.08481901]
[1761761210014,0.17923918,111590.0,111580.0,0.08481901]
[1761761210876,0.17923918,111590.0,111580.0,0.2640626]
[1761761211085,0.18817203,111600.0,111580.0,0.2640626]
[1761761211303,0.17922752,111590.0,111580.0,0.3103726]
[1761761211515,0.17922752,111590.0,111580.0,0.3729643]
[1761761212181,0.17921146,111600.0,111590.0,0.17922752]
[1761761212387,0.17921146,111600.0,111590.0,0.26904653]
[1761761212612,0.17921146,111600.0,111590.0,0.08981901]
[1761761212870,0.17921146,111600.0,111590.0,0.31535653]
[1761761213081,0.18815518,111610.0,111600.0,0.17921146]
[1761761213305,0.22464354,111630.0,111610.0,0.17919541]
[1761761213519,0.17917935,111620.0,111610.0,0.22915541]
[1761761213735,0.18753093,111620.0,111610.0,0.22174263]
[1761761213956,0.17914727,111640.0,111620.0,0.17917401]
[1761761214200,0.1874981,111640.0,111620.0,0.31530836]
[1761761214407,0.1874981,111640.0,111630.0,0.08981901]
[1761761214821,0.1874981,111640.0,111630.0,0.26898231]
[1761761215044,0.1874981,111640.0,111630.0,0.08981901]
[1761761216182,0.00835083,111640.0,111630.0,0.26898231]
[1761761216408,0.17917935,111620.0,111610.0,0.04254722]
[1761761216616,0.17917935,111620.0,111610.0,0.08981901]
[1761761216617,0.18753018,111620.0,111610.0,0.08981901]
[1761761216858,0.17919541,111610.0,111600.0,0.17921146]
[1761761217090,0.23379189,111630.0,111610.0,0.29989541]
[1761761217298,0.17917935,111620.0,111610.0,0.68097898]
[1761761217510,0.00837578,111620.0,111610.0,0.82825439]
[1761761217720,0.00837578,111620.0,111610.0,0.81386439]
[1761761217947,0.17916699,111630.0,111610.0,0.81386439]
[1761761218160,0.18754932,111630.0,111620.0,0.81768833]
[1761761218375,0.00838233,111630.0,111620.0,0.81790487]
[1761761218819,0.18810461,111640.0,111630.0,0.1791633]
[1761761219028,0.19648687,111640.0,111630.0,0.77136228]
[1761761219241,0.19648687,111640.0,111630.0,0.90749129]
[1761761219487,0.00838226,111640.0,111630.0,0.90749129]
[1761761219683,0.17914725,111640.0,111630.0,0.72832799]
[1761761219897,0.17914725,111640.0,111630.0,0.08981901]
[1761761220102,0.18752917,111640.0,111630.0,0.08956241]
[1761761220520,0.1791633,111630.0,111620.0,0.00021654]
[1761761220747,0.20516522,111630.0,111620.0,0.00021654]
[1761761220962,0.23475522,111630.0,111620.0,0.00021654]
[1761761221170,0.18754522,111630.0,111620.0,0.00021654]
[1761761221394,3.23475522,111630.0,111620.0,0.00021654]
[1761761221588,0.23475522,111630.0,111620.0,0.00021654]
[1761761222066,0.18754206,111630.0,111620.0,0.00021654]
[1761761222484,3.57475206,111630.0,111620.0,0.00021654]
[1761761222903,4.04521203,111630.0,111620.0,0.00021654]
[1761761223150,4.13503104,111630.0,111620.0,0.00021654]
[1761761223372,4.15432218,111630.0,111620.0,0.00021654]
[1761761223816,3.68386221,111630.0,111620.0,0.00021654]
[1761761224021,0.52754206,111630.0,111620.0,0.00021654]
[1761761224266,0.57475206,111630.0,111620.0,0.00021654]
[1761761224510,0.18754206,111630.0,111620.0,0.00021654]
[1761761224751,3.23475206,111630.0,111620.0,0.00021654]
[1761761225189,0.18754206,111630.0,111620.0,0.00021654]
[1761761226261,3.70521203,111630.0,111620.0,0.00021654]
[1761761226457,3.23475206,111630.0,111620.0,0.00021654]
[1761761226766,0.00837876,111630.0,111620.0,0.73967487]
[1761761226978,0.00837876,111630.0,111620.0,0.69662453]
[1761761227189,0.18811527,111650.0,111620.0,0.40534391]
[1761761227397,0.0083744,111650.0,111630.0,0.31728162]
[1761761227634,0.0083744,111650.0,111640.0,0.17914725]
[1761761227854,0.0083744,111650.0,111640.0,0.31726626]
[1761761228092,0.0083744,111650.0,111640.0,0.26896626]
[1761761228330,0.0083744,111650.0,111640.0,0.87754524]
[1761761228526,0.17911627,111660.0,111650.0,0.17913121]
[1761761228764,0.18748242,111660.0,111650.0,0.12768901]
[1761761228977,0.17914725,111640.0,111620.0,0.00021654]
[1761761229202,0.2271533,111630.0,111620.0,0.00021654]
[1761761229408,0.23551931,111630.0,111620.0,0.00021654]
[1761761229633,0.28390931,111630.0,111620.0,0.00021654]
[1761761229854,0.23551931,111630.0,111620.0,0.00021654]
[1761761230710,0.00836601,111630.0,111620.0,0.73967487]
[1761761230929,0.00836601,111630.0,111620.0,1.21779388]
[1761761231138,0.17914725,111640.0,111630.0,0.1791633]
[1761761231347,0.00836759,111640.0,111630.0,0.78774228]
[1761761231558,0.00836759,111640.0,111630.0,0.73944228]
[1761761231762,0.00836759,111640.0,111630.0,0.26898231]
[1761761231967,0.00836759,111640.0,111630.0,0.35880132]
[1761761232184,0.18751484,111640.0,111630.0,0.08981901]
[1761761232436,0.18751484,111640.0,111620.0,0.00021654]
[1761761232437,0.1791633,111630.0,111620.0,0.00021654]
[1761761232829,0.17914725,111640.0,111620.0,0.2692149]
[1761761233039,0.18808807,111650.0,111630.0,0.26898231]
[1761761233248,0.19645273,111650.0,111630.0,0.08981901]
[1761761233456,0.1791633,111630.0,111620.0,0.00021654]
[1761761233876,4.16306456,111630.0,111620.0,0.00021654]
[1761761234084,4.17143126,111630.0,111620.0,0.00021654]
[1761761234732,4.13524898,111630.0,111620.0,0.00021654]
[1761761234949,0.66478901,111630.0,111620.0,0.00021654]
[1761761235172,0.61734901,111630.0,111620.0,0.00021654]
[1761761235370,0.18753,111630.0,111620.0,0.00021654]
[1761761235807,0.1791633,111630.0,111620.0,0.17939589]
[1761761236022,0.1791633,111630.0,111620.0,0.00021654]
[1761761237054,0.17914725,111640.0,111620.0,0.78641487]
[1761761237366,0.1791633,111630.0,111620.0,0.3159549]
[1761761237530,0.17914725,111640.0,111630.0,0.1791633]
[1761761237731,0.17914725,111640.0,111630.0,0.47045997]
[1761761238040,0.17914725,111640.0,111630.0,0.78618228]
[1761761238235,0.52807092,111660.0,111640.0,0.17914725]
[1761761238435,0.00837272,111660.0,111650.0,0.73941019]
[1761761238667,0.18807092,111660.0,111640.0,0.34]
[1761761238886,0.1791633,111630.0,111620.0,0.47067651]
[1761761239052,0.1791633,111630.0,111620.0,0.56049552]
[1761761239252,0.1791633,111630.0,111620.0,0.80437289]
[1761761239458,0.1791633,111630.0,111620.0,0.85111342]
[1761761239835,0.17914725,111640.0,111620.0,0.85111342]
[1761761240081,0.17915049,111640.0,111630.0,0.56027898]
[1761761240287,0.23551092,111660.0,111630.0,0.78618228]
[1761761240288,0.18807092,111660.0,111630.0,0.78618228]
[1761761240492,0.17914725,111640.0,111630.0,0.40554132]
[1761761240702,0.17914725,111640.0,111630.0,0.56027898]
[1761761240901,0.1791633,111630.0,111620.0,0.64985586]
[1761761241019,0.1791633,111630.0,111620.0,0.09003555]
[1761761241219,0.6140333,111630.0,111620.0,0.00021654]
[1761761241646,0.60209715,111630.0,111620.0,0.00021654]
[1761761242060,3.60209715,111630.0,111620.0,0.00021654]
[1761761242705,0.54627795,111630.0,111620.0,0.00021654]
[1761761243912,0.1791633,111630.0,111620.0,0.47067651]
[1761761244304,0.1791633,111630.0,111620.0,0.52255216]
[1761761244673,0.1999033,111630.0,111620.0,0.52255216]
[1761761244849,0.1999033,111630.0,111620.0,0.47067651]
[1761761245031,0.1999033,111630.0,111620.0,0.00021654]
[1761761245839,0.1791633,111630.0,111620.0,0.00021654]
[1761761246155,0.2257433,111630.0,111620.0,0.00021654]
[1761761246609,3.2257433,111630.0,111620.0,0.00021654]
[1761761246758,3.65556231,111630.0,111620.0,0.00021654]
[1761761246956,3.70012738,111630.0,111620.0,1e-08]
[1761761247370,0.1791633,111630.0,111620.0,1e-08]
[1761761247774,0.1791633,111630.0,111620.0,0.56027899]
[1761761247982,0.1791633,111630.0,111620.0,0.80029424]
[1761761248184,0.17914725,111640.0,111620.0,0.84703424]
[1761761248386,0.17914725,111640.0,111630.0,0.47045997]
[1761761248596,0.17914725,111640.0,111630.0,0.73944228]
[1761761248997,0.23550092,111660.0,111640.0,0.17914725]
[1761761249238,0.17910171,111670.0,111650.0,0.73941019]
[1761761249443,0.18814046,111680.0,111660.0,0.64957224]
[1761761249658,0.22481384,111690.0,111670.0,0.56027898]
[1761761249856,0.17914384,111690.0,111680.0,0.47045997]
[1761761250065,0.17908309,111680.0,111670.0,0.08981901]
[1761761250460,0.17908309,111680.0,111670.0,0.56926088]
[1761761250576,0.17909913,111670.0,111650.0,0.69633087]
[1761761250784,0.18803724,111680.0,111660.0,0.73939415]
[1761761250993,0.18809719,111690.0,111670.0,0.6495591]
[1761761251191,0.18809719,111690.0,111680.0,0.56027898]
[1761761251455,0.18809719,111690.0,111680.0,0.60862591]
[1761761251655,0.18809719,111690.0,111680.0,0.08981901]
[1761761252055,0.18809719,111690.0,111680.0,0.2689021]
[1761761252281,0.17906706,111690.0,111680.0,0.73936207]
[1761761252642,0.17909913,111670.0,111650.0,0.99854765]
[1761761252822,0.17909913,111670.0,111660.0,0.08981901]
[1761761253041,0.19807913,111670.0,111660.0,0.14584691]
[1761761253243,0.17909913,111670.0,111660.0,0.61630688]
[1761761253380,0.19807913,111670.0,111660.0,0.08981901]
[1761761253582,0.17909913,111670.0,111660.0,0.78613415]
[1761761253783,0.17909913,111670.0,111660.0,0.56027898]
[1761761254046,0.19807913,111670.0,111660.0,0.08981901]
[1761761254171,0.18805298,111680.0,111660.0,0.61630688]
[1761761254377,0.18805298,111680.0,111670.0,0.47045997]
[1761761254587,0.18805298,111680.0,111670.0,0.56027898]
[1761761254786,0.18802041,111690.0,111670.0,0.78611811]
[1761761255030,0.18802041,111690.0,111680.0,0.56027898]
[1761761255460,0.18802041,111690.0,111680.0,0.79538997]
[1761761255860,0.18802041,111690.0,111680.0,0.56027898]
[1761761256057,3.18802041,111690.0,111680.0,0.08981901]
[1761761256430,0.18802041,111690.0,111680.0,0.56027898]
[1761761257014,0.18802041,111690.0,111680.0,0.73936207]
[1761761257427,0.18802041,111690.0,111680.0,0.56027898]
[1761761257651,0.18802041,111690.0,111680.0,0.08981901]
[1761761257851,0.18802041,111690.0,111680.0,0.56027898]
[1761761258106,0.18808347,111700.0,111680.0,0.73936207]
[1761761258347,0.18808347,111700.0,111690.0,0.64952703]
[1761761258555,0.18808347,111700.0,111690.0,0.56027898]
[1761761258773,0.18808347,111700.0,111690.0,0.63892919]
[1761761259205,0.18808347,111700.0,111690.0,0.87933625]
[1761761259406,0.18808347,111700.0,111690.0,0.12112901]
[1761761259582,0.17905102,111700.0,111690.0,0.86426555]
[1761761259780,0.18810721,111710.0,111690.0,0.86426555]
[1761761260009,0.18810721,111710.0,111700.0,0.7572351]
[1761761260010,0.00833869,111710.0,111700.0,0.7572351]
[1761761260222,0.00833869,111710.0,111700.0,0.63872898]
[1761761260223,0.179035,111710.0,111700.0,0.63872898]
[1761761260407,0.179035,111710.0,111700.0,0.85796189]
[1761761260616,0.17926348,111720.0,111700.0,0.90510189]
[1761761260826,0.0002,111720.0,111710.0,0.72794497]
[1761761261034,0.0002,111720.0,111710.0,0.81776398]
[1761761261362,0.17921897,111720.0,111710.0,0.78645398]
[1761761261563,0.0002,111720.0,111710.0,0.87627299]
[1761761261995,0.17921897,111720.0,111710.0,0.08981901]
[1761761262420,0.17921897,111720.0,111710.0,0.56027898]
[1761761263025,0.17921897,111720.0,111710.0,0.73931398]
[1761761263230,0.17921897,111720.0,111710.0,0.56027898]
[1761761264025,0.17921897,111720.0,111710.0,0.08981901]
[1761761264294,0.18753485,111720.0,111710.0,0.08981901]
[1761761264500,0.17906706,111690.0,111680.0,0.47045997]
[1761761264626,0.17906706,111690.0,111680.0,0.63384733]
[1761761265028,0.17906706,111690.0,111680.0,0.16338736]
[1761761265230,3.23460041,111690.0,111660.0,0.52648787]
[1761761265444,0.17911517,111660.0,111650.0,0.51692997]
[1761761265655,0.17911517,111660.0,111650.0,0.60674898]
[1761761265862,0.17911517,111660.0,111650.0,0.08981901]
[1761761266264,0.1790999,111670.0,111650.0,0.65388898]
[1761761266472,0.17909738,111680.0,111660.0,0.80444566]
[1761761266710,0.17909738,111680.0,111670.0,0.47045997]
[1761761266914,0.18802041,111690.0,111670.0,0.78651811]
[1761761267113,0.17906706,111690.0,111680.0,0.73936207]
[1761761267316,0.17906706,111690.0,111680.0,0.81637002]
[1761761267517,0.17906706,111690.0,111680.0,0.08981901]
[1761761270682,0.17906706,111690.0,111680.0,0.81637002]
[1761761271011,0.17905102,111700.0,111680.0,1.04259311]
[1761761271146,0.17905102,111700.0,111690.0,0.90561807]
[1761761271357,0.23541675,111710.0,111690.0,1.04190708]
[1761761271580,0.00832311,111710.0,111700.0,0.08981901]
[1761761271783,0.179035,111710.0,111700.0,0.08981901]
[1761761271958,0.17906706,111690.0,111670.0,0.96106636]
[1761761272151,0.17906706,111690.0,111680.0,0.08981901]
[1761761272329,0.17908309,111680.0,111670.0,0.08981901]
[1761761273764,0.17908309,111680.0,111630.0,0.90560981]
[1761761273765,0.17911517,111660.0,111630.0,0.90560981]
[1761761273976,0.17913121,111650.0,111640.0,0.08981901]
[1761761274250,0.18807092,111660.0,111640.0,0.99551727]
[1761761274448,0.18807092,111660.0,111650.0,0.04647]
[1761761274657,0.18807092,111660.0,111650.0,0.13628901]
[1761761275072,0.18807092,111660.0,111650.0,0.08981901]
[1761761275489,0.18807092,111660.0,111650.0,0.12142958]
[1761761275895,0.1880682,111670.0,111650.0,0.39417079]
[1761761276100,0.1880682,111670.0,111660.0,0.08981901]
[1761761276304,0.17911325,111670.0,111660.0,0.26893418]
[1761761276687,0.17909913,111670.0,111660.0,0.08981901]
[1761761276925,0.17909913,111670.0,111660.0,0.17963802]
[1761761277270,0.18803724,111680.0,111660.0,0.35875319]
[1761761277586,0.17909913,111670.0,111660.0,1.1324442]
[1761761277931,0.18744015,111680.0,111670.0,0.22556913]
[1761761277932,0.17908309,111680.0,111670.0,0.22556913]
[1761761278100,0.00836194,111680.0,111670.0,1.17889816]
[1761761278505,0.00836194,111680.0,111670.0,0.45234715]
[1761761278673,0.18744503,111680.0,111670.0,1.17889816]
[1761761278874,0.18744503,111680.0,111670.0,1.21020816]
[1761761279070,0.18802041,111690.0,111670.0,1.21020816]
[1761761279278,0.1963858,111690.0,111680.0,0.12112901]
[1761761279513,0.1963858,111690.0,111680.0,0.21094802]
[1761761279769,0.1963858,111690.0,111680.0,0.39003111]
[1761761280105,0.1963858,111690.0,111680.0,0.21094802]
[1761761280303,0.1963858,111690.0,111680.0,0.25808802]
[1761761280508,0.1963858,111690.0,111680.0,0.08981901]
[1761761280787,0.2459258,111690.0,111680.0,0.08981901]
[1761761280973,0.1997758,111690.0,111680.0,0.08981901]
[1761761281340,0.1963858,111690.0,111680.0,0.08981901]
[1761761281766,0.1963858,111690.0,111680.0,0.89482002]
[1761761281973,0.1963858,111690.0,111680.0,0.17963802]
[1761761282172,0.17909913,111670.0,111650.0,0.07808057]
[1761761282406,0.17909913,111670.0,111660.0,0.08981901]
[1761761282734,0.18746483,111670.0,111660.0,0.08981901]
[1761761282961,0.19085483,111670.0,111660.0,0.08981901]
[1761761283171,0.18746483,111670.0,111660.0,0.90380192]
[1761761283370,0.17909739,111680.0,111660.0,1.08291709]
[1761761283575,0.18746196,111680.0,111670.0,1.03057014]
[1761761283779,0.17909739,111680.0,111670.0,0.21473901]
[1761761283988,0.18746187,111680.0,111670.0,0.13628901]
[1761761284188,0.18802041,111690.0,111670.0,0.43099075]
[1761761284343,0.19638498,111690.0,111680.0,0.08981901]
[1761761284552,0.18743163,111690.0,111680.0,0.3002121]
[1761761284763,0.18743163,111690.0,111680.0,1.07390311]
[1761761285068,0.17909552,111700.0,111680.0,1.07390311]
[1761761285272,0.18741672,111700.0,111690.0,0.03131]
[1761761285483,0.18741672,111700.0,111690.0,0.12112901]
[1761761285484,0.18741383,111700.0,111690.0,0.12112901]
[1761761285645,0.18741383,111700.0,111690.0,0.08981901]
[1761761286303,0.18741383,111700.0,111690.0,0.12112901]
[1761761286304,0.18741352,111700.0,111690.0,0.12112901]
[1761761286569,0.19080352,111700.0,111690.0,0.08981901]
[1761761286723,0.17908309,111680.0,111670.0,0.42362261]
[1761761286932,0.22650309,111680.0,111670.0,0.08981901]
[1761761287129,0.23032309,111680.0,111670.0,0.08981901]
[1761761287358,0.17911517,111660.0,111640.0,0.04714]
[1761761287675,0.17911517,111660.0,111650.0,0.26895022]
[1761761287791,0.17911517,111660.0,111650.0,0.34988022]
[1761761287990,0.17911517,111660.0,111650.0,0.43969923]
[1761761288199,0.17911517,111660.0,111650.0,1.16625024]
[1761761288481,0.17912808,111670.0,111660.0,0.17911517]
[1761761288681,0.17908309,111680.0,111660.0,1.07641519]
[1761761288964,0.17906706,111690.0,111680.0,0.17908309]
[1761761289274,0.18800357,111700.0,111690.0,0.17906706]
[1761761289483,0.00836219,111700.0,111690.0,1.07636708]
[1761761289596,0.0002,111720.0,111710.0,0.179035]
[1761761289811,0.0002,111720.0,111710.0,1.41646502]
[1761761290014,0.0002,111720.0,111710.0,1.4678573]
[1761761290223,0.18753174,111750.0,111740.0,0.17898693]
[1761761290435,0.00855321,111750.0,111740.0,1.02648695]
[1761761290630,0.00855321,111750.0,111740.0,1.41455695]
[1761761290838,0.0002,111750.0,111740.0,1.41455695]
[1761761291043,0.0002,111750.0,111740.0,1.45073923]
[1761761291287,0.0002,111750.0,111740.0,0.81400723]
[1761761291543,0.0002,111750.0,111740.0,1.54055824]
[1761761292638,0.0002,111750.0,111740.0,1.55055823]
[1761761292854,0.0002,111750.0,111740.0,1.54055824]
[1761761293071,0.0002,111750.0,111740.0,1.50437596]
[1761761294531,0.0002,111750.0,111740.0,1.54055824]
[1761761294889,0.00832249,111780.0,111760.0,0.17895414]
[1761761295066,0.1872458,111780.0,111770.0,0.08981901]
[1761761295431,0.1872458,111780.0,111770.0,0.10771289]
[1761761295655,0.1872458,111780.0,111770.0,0.08981901]
[1761761295863,0.1872458,111780.0,111770.0,0.13958901]
[1761761296249,0.1872458,111780.0,111770.0,0.12105901]
[1761761296450,0.1872458,111780.0,111770.0,0.38981691]
[1761761296690,0.1872458,111780.0,111770.0,0.26064802]
[1761761296930,0.18724537,111780.0,111770.0,1.16613792]
[1761761297342,0.18724537,111780.0,111770.0,0.43958691]
[1761761297547,0.1833466,111810.0,111780.0,0.17890888]
[1761761297692,0.00446725,111810.0,111800.0,0.07705]
[1761761297891,0.00446725,111810.0,111800.0,1.07231089]
[1761761298136,0.18334212,111810.0,111800.0,0.21663901]
[1761761298518,0.18334212,111810.0,111800.0,0.39552988]
[1761761298716,0.00446725,111810.0,111800.0,1.09084089]
[1761761298920,0.18334212,111810.0,111800.0,1.1806599]
[1761761299292,0.00446725,111810.0,111800.0,1.5206599]
[1761761299497,0.00446725,111810.0,111800.0,0.83029117]
[1761761299726,0.00446725,111810.0,111800.0,1.5206599]
[1761761299929,0.00446725,111810.0,111800.0,1.5207099]
[1761761300555,0.00446725,111810.0,111800.0,1.55689218]
[1761761300756,0.18778858,111860.0,111820.0,0.18780182]
[1761761300992,3.17879492,111860.0,111830.0,0.29547154]
[1761761301193,0.17882689,111840.0,111830.0,0.08981901]
[1761761301368,0.17886218,111820.0,111800.0,0.82218101]
[1761761301563,0.17886218,111820.0,111810.0,0.08981901]
[1761761301822,0.17885888,111820.0,111810.0,0.81637002]
[1761761302037,0.17885888,111820.0,111810.0,1.1348339]
[1761761302320,0.18776823,111840.0,111820.0,0.17885624]
[1761761302479,0.17881109,111850.0,111830.0,0.99521254]
[1761761302679,0.1788109,111850.0,111840.0,0.90537669]
[1761761302883,0.18773466,111860.0,111840.0,1.04496578]
[1761761303102,0.18773466,111860.0,111850.0,0.08981901]
[1761761303365,0.18782073,111870.0,111850.0,1.09076092]
[1761761303567,0.17881426,111880.0,111860.0,0.90534593]
[1761761303777,0.17881426,111880.0,111870.0,0.08981901]
[1761761304350,0.17879492,111860.0,111850.0,0.24250199]
[1761761304588,0.17879492,111860.0,111850.0,0.18539901]
[1761761305122,0.17879282,111870.0,111850.0,1.18057993]
[1761761305353,0.17879492,111860.0,111850.0,0.18539901]
[1761761305581,0.17879282,111870.0,111850.0,0.2743909]
[1761761305797,3.17878006,111870.0,111850.0,0.2743909]
[1761761306029,0.17879492,111860.0,111830.0,0.18778466]
[1761761306243,0.17879948,111860.0,111850.0,0.1788109]
[1761761306393,0.1788109,111850.0,111840.0,0.9551479]
[1761761306602,0.1788109,111850.0,111840.0,0.13958901]
[1761761306767,0.1788109,111850.0,111840.0,0.08981901]
[1761761307910,0.234269,111870.0,111840.0,1.04496691]
[1761761308093,0.234269,111870.0,111850.0,0.08981901]
[1761761308094,0.17879492,111860.0,111850.0,0.08981901]
[1761761308297,0.17879492,111860.0,111850.0,0.86614002]
[1761761308490,0.17879492,111860.0,111850.0,1.04495092]
[1761761308691,0.17879492,111860.0,111850.0,1.07619092]
[1761761309008,3.17879492,111860.0,111850.0,0.08981901]
[1761761309191,0.17879492,111860.0,111850.0,0.34963991]
[1761761309392,0.17879492,111860.0,111850.0,0.12105901]
[1761761309595,0.16164593,111870.0,111850.0,1.12200092]
[1761761309818,0.17878059,111870.0,111860.0,0.08101]
[1761761310117,0.17877893,111870.0,111860.0,0.17082901]
[1761761310484,0.17877893,111870.0,111860.0,0.12105901]
[1761761310703,0.2285576,111890.0,111860.0,0.08981901]
[1761761310888,0.17876484,111880.0,111860.0,1.09286133]
[1761761311250,0.0002,111900.0,111890.0,0.17874698]
[1761761311466,0.0002,111900.0,111890.0,0.34957599]
[1761761312135,0.0002,111900.0,111890.0,1.076127]